bitfinex/quotes_ETHUSD_20250724
["timestamp","ask_amount","ask_price","bid_price","bid_amount"]
[1753336173269,2.79077851,3583.3,3583.2,1.355]
[1753336173684,2.79080151,3583.2,3583.1,0.04]
[1753336174429,3.69694274,3583.2,3583.1,0.04]
[1753336174799,2.79080151,3583.2,3583.1,0.04]
[1753336175314,6.80310151,3583.2,3583.1,0.04]
[1753336175484,7.56980151,3583.2,3583.1,0.04]
[1753336175981,7.56980151,3583.2,3583.1,1e-08]
[1753336176593,7.59230151,3583.2,3583.1,1e-08]
[1753336176984,8.18182735,3583.2,3583.1,1e-08]
[1753336178424,8.91844483,3583.2,3583.1,1e-08]
[1753336178730,9.16343871,3583.2,3583.1,1e-08]
[1753336178891,8.18182735,3583.2,3583.1,1e-08]
[1753336179096,12.55882735,3583.2,3583.1,1e-08]
[1753336179292,13.29638558,3583.2,3583.1,1e-08]
[1753336179551,12.55882735,3583.2,3583.1,1e-08]
[1753336179924,12.55982735,3583.2,3583.1,1e-08]
[1753336180617,12.00982735,3583.2,3583.1,1e-08]
[1753336180815,8.18182735,3583.2,3583.1,1e-08]
[1753336181011,8.91968807,3583.2,3583.1,1e-08]
[1753336181211,13.29768807,3583.2,3583.1,1e-08]
[1753336181611,8.91968807,3583.2,3583.1,1e-08]
[1753336181811,12.56182735,3583.2,3583.1,1e-08]
[1753336182017,8.91968807,3583.2,3583.1,1e-08]
[1753336182306,13.29768807,3583.2,3583.1,1e-08]
[1753336183042,8.91974108,3583.2,3583.1,1e-08]
[1753336183246,12.55982735,3583.2,3583.1,1e-08]
[1753336183462,13.29774108,3583.2,3583.1,1e-08]
[1753336183730,12.55982735,3583.2,3583.1,1e-08]
[1753336183933,8.91982973,3583.2,3583.1,1e-08]
[1753336184135,12.56382735,3583.2,3583.1,1e-08]
[1753336184734,0.55,3582.2,3581.1,0.04]
[1753336184933,0.1392,3581.5,3581.1,0.04]
[1753336185238,0.1392,3581.8,3581.3,0.8242]
[1753336185547,0.1392,3582.1,3581.4,0.74983]
[1753336185704,3.25893999,3582.6,3581.4,0.74983]
[1753336185705,0.59049624,3582.6,3581.9,2.79175858]
[1753336185905,4.393,3582.8,3582.1,0.8109]
[1753336186140,0.59049624,3583.1,3582.4,0.1392]
[1753336186304,0.59049624,3583.2,3582.7,0.1392]
[1753336186506,0.59049624,3583.3,3582.9,0.9501]
[1753336186834,4.396,3583.9,3583.0,0.4639]
[1753336187136,3.04,3583.9,3583.4,0.1392]
[1753336187342,0.04,3583.9,3583.5,0.4639]
[1753336187513,0.04,3583.9,3583.7,0.1392]
[1753336187928,0.04,3583.9,3583.8,0.4639]
[1753336188343,0.04,3583.9,3583.8,1.36465]
[1753336188501,0.04,3583.9,3583.8,4.15498428]
[1753336188705,0.04,3583.9,3583.8,1.36465]
[1753336189242,0.04,3583.9,3583.8,4.15498428]
[1753336189535,0.04,3583.9,3583.8,4.17592747]
[1753336189699,0.04,3583.9,3583.8,4.15498428]
[1753336190958,0.04,3583.9,3583.8,5.75765]
[1753336191101,0.04,3583.9,3583.8,1.36465]
[1753336191307,0.04,3583.9,3583.8,1.2216]
[1753336191511,2.83025642,3583.9,3583.8,0.7577]
[1753336192251,0.04,3583.9,3583.8,0.7577]
[1753336192454,0.04,3583.9,3583.8,1.2216]
[1753336192844,0.04,3583.9,3583.8,4.01193428]
[1753336193046,0.04,3583.9,3583.8,6.31095617]
[1753336193226,0.04,3583.9,3583.8,9.10129045]
[1753336193550,0.04,3583.9,3583.8,6.31095617]
[1753336193749,0.04,3583.9,3583.8,6.31195617]
[1753336194635,0.04,3583.9,3583.8,6.31095617]
[1753336194835,0.04,3583.9,3583.8,1.91795617]
[1753336195035,0.04,3583.9,3583.8,6.30995617]
[1753336195447,0.04,3583.9,3583.8,9.10029045]
[1753336197228,0.04,3583.9,3583.8,8.25829045]
[1753336197752,0.04,3583.9,3583.8,12.64729045]
[1753336199359,0.04,3583.9,3583.8,12.64629045]
[1753336200264,0.04,3583.9,3583.8,1.91795617]
[1753336200438,0.04,3583.9,3583.8,8.39893428]
[1753336200856,0.04,3583.9,3583.8,1.2216]
[1753336201027,0.04,3583.9,3583.8,5.6086]
[1753336201229,0.04,3583.9,3583.8,8.39893428]
[1753336202567,0.04,3583.9,3583.8,1.2216]
[1753336202768,0.04,3583.9,3583.8,5.6076]
[1753336203363,0.04,3583.9,3583.8,8.39793428]
[1753336203559,0.04,3583.9,3583.8,9.25535773]
[1753336204547,0.04,3583.9,3583.8,6.46502345]
[1753336204768,2.83025642,3583.9,3583.8,5.1427]
[1753336205073,0.04,3583.9,3583.8,4.385]
[1753336205238,2.83025642,3583.9,3583.8,4.385]
[1753336205983,2.79033428,3583.8,3583.7,0.1392]
[1753336206268,0.04,3583.9,3583.8,0.4639]
[1753336206475,2.79033428,3583.8,3583.7,0.1392]
[1753336206771,2.79049001,3583.6,3583.5,0.001]
[1753336206969,2.82537113,3583.6,3583.5,0.001]
[1753336207132,3.25809001,3583.6,3583.5,0.001]
[1753336209875,7.60317113,3583.6,3583.5,1e-08]
[1753336210077,8.28678578,3583.6,3583.5,1e-08]
[1753336210444,14.74552207,3583.6,3583.5,1e-08]
[1753336211073,19.14052207,3583.6,3583.5,1e-08]
[1753336211459,19.14252207,3583.6,3583.5,1e-08]
[1753336211660,12.68378578,3583.6,3583.5,1e-08]
[1753336212775,8.28678578,3583.6,3583.5,1e-08]
[1753336212940,12.68478578,3583.6,3583.5,1e-08]
[1753336213399,8.28678578,3583.6,3583.5,1e-08]
[1753336213599,12.68478578,3583.6,3583.5,1e-08]
[1753336214752,2.79220416,3581.4,3581.3,0.02096191]
[1753336214952,2.79178149,3582.0,3581.2,2.43109671]
[1753336214953,2.79228213,3581.3,3581.2,2.43109671]
[1753336215274,2.79228213,3581.3,3581.2,2.90439671]
[1753336216385,2.79205541,3581.6,3581.2,2.90439671]
[1753336216591,2.7918144,3581.9,3581.3,0.4733]
[1753336216796,2.9310144,3581.9,3581.3,0.1392]
[1753336216956,2.79220416,3581.4,3581.3,0.1392]
[1753336217162,2.79228213,3581.3,3581.2,2.43109671]
[1753336219959,2.7923601,3581.2,3580.9,0.1392]
[1753336220556,3.36473763,3581.2,3580.4,0.8133]
[1753336220760,3.50393763,3581.2,3580.6,0.1392]
[1753336221200,3.96753763,3581.2,3580.6,0.1392]
[1753336221501,3.50393763,3581.2,3580.6,0.6125]
[1753336221711,2.7923601,3581.2,3580.8,0.1392]
[1753336222455,3.5783646,3581.2,3580.8,0.1392]
[1753336222656,7.1811646,3581.2,3580.6,0.1392]
[1753336222905,7.1462601,3581.2,3580.6,0.1392]
[1753336223101,2.7923601,3581.2,3580.4,0.4733]
[1753336223294,2.7923601,3581.2,3580.8,0.1392]
[1753336224864,2.7923601,3581.2,3580.8,0.6125]
[1753336226003,3.2908646,3581.2,3580.8,0.1392]
[1753336226208,3.91309258,3581.2,3580.8,0.1392]
[1753336226501,3.44949258,3581.2,3580.8,0.1392]
[1753336226703,3.41458808,3581.2,3580.8,0.1392]
[1753336226999,3.44949258,3581.2,3580.8,0.1392]
[1753336227185,5.23269258,3581.2,3581.1,1e-08]
[1753336227389,5.23269258,3581.2,3578.8,0.4733]
[1753336227390,3.7502,3580.2,3579.6,0.1392]
[1753336227704,2.79377096,3579.4,3579.1,1e-08]
[1753336227932,3.0,3580.0,3579.1,1e-08]
[1753336228212,2.79384405,3579.3,3579.1,0.47330001]
[1753336228371,10.50354667,3580.0,3579.1,0.47330001]
[1753336228576,5.79392042,3579.2,3579.1,1e-08]
[1753336228972,6.80752042,3579.2,3579.1,1e-08]
[1753336229207,11.45018575,3579.2,3579.1,1e-08]
[1753336229412,12.21296157,3579.2,3579.1,1e-08]
[1753336229710,3.55,3578.1,3578.0,1e-08]
[1753336229908,5.82971409,3578.1,3578.0,1e-08]
[1753336230118,6.25837935,3578.1,3578.0,1e-08]
[1753336230336,10.69237935,3578.1,3578.0,1e-08]
[1753336230654,10.69237935,3578.1,3576.1,0.04]
[1753336230655,2.79626419,3576.2,3576.1,0.04]
[1753336230930,4.453,3577.0,3575.8,2.79657607]
[1753336231112,0.8146,3576.7,3575.0,2.7971874]
[1753336231408,0.8089,3576.5,3575.2,0.77390212]
[1753336231624,0.8089,3576.5,3575.2,0.02110212]
[1753336231779,2.79626938,3576.2,3575.3,5.6961]
[1753336231983,0.55,3576.9,3575.4,3.29122415]
[1753336232280,3.0,3575.9,3575.4,0.02109753]
[1753336232493,1.01689959,3577.0,3575.1,0.04]
[1753336232494,0.03495721,3575.8,3575.1,0.04]
[1753336232679,0.03495232,3576.3,3575.2,0.4733]
[1753336232883,0.8089,3577.0,3575.3,0.7579]
[1753336233099,3.0,3576.9,3575.4,0.49439753]
[1753336233423,0.03494743,3576.8,3575.7,2.79660054]
[1753336233577,0.84384548,3577.0,3575.3,0.7579]
[1753336233780,2.79651278,3575.9,3575.3,0.7579]
[1753336234010,2.79649954,3575.9,3575.3,0.7579]
[1753336234231,0.03495721,3575.8,3575.7,2.7966552]
[1753336234436,1.8317,3577.7,3575.8,2.79657698]
[1753336234578,1.8317,3577.7,3575.3,0.02110358]
[1753336234579,0.46667112,3577.6,3576.2,0.7633]
[1753336234783,0.0349406,3577.5,3576.2,5.7746]
[1753336235095,0.8181,3577.7,3576.3,0.4733]
[1753336235521,0.8181,3577.7,3576.4,0.02108003]
[1753336235698,0.8181,3577.7,3576.5,0.4733]
[1753336236036,0.04,3577.9,3577.1,0.8319]
[1753336236324,0.04,3577.9,3577.2,0.49436849]
[1753336236621,0.04,3577.9,3577.3,0.58682685]
[1753336236825,0.04,3577.9,3577.4,0.02106595]
[1753336237026,0.04,3577.9,3577.8,0.7562]
[1753336237363,0.04,3577.9,3577.8,7.02451369]
[1753336237639,0.04,3577.9,3577.8,4.2295]
[1753336237841,0.04,3577.9,3577.8,7.16371369]
[1753336238603,0.04,3578.9,3578.4,2.79450548]
[1753336238825,2.8291606,3578.8,3577.1,0.6119727]
[1753336239027,2.79531213,3577.5,3577.1,0.6119727]
[1753336239235,0.4292,3578.2,3577.1,0.1386727]
[1753336239448,2.79524217,3577.6,3577.1,0.1386727]
[1753336239622,3.4292,3578.7,3577.2,0.4665]
[1753336239827,2.79485449,3578.1,3577.2,0.4665]
[1753336240035,2.79485449,3578.1,3577.2,3.26198007]
[1753336240230,2.79485449,3578.1,3577.0,4.569]
[1753336240231,2.79442125,3578.6,3577.3,1.24959801]
[1753336240414,3.0,3578.6,3577.5,2.79517663]
[1753336240619,2.7947942,3578.1,3577.5,6.712]
[1753336240810,2.79460497,3578.4,3577.6,1.2965898]
[1753336241134,2.79461421,3578.4,3577.6,0.8300898]
[1753336241339,0.04,3578.9,3577.7,0.4665]
[1753336241544,2.79492936,3578.0,3577.8,4.565]
[1753336241700,2.79493557,3577.9,3577.8,4.565]
[1753336242341,0.4692,3578.9,3577.8,5.0315]
[1753336242524,0.04,3578.9,3577.9,3.76457965]
[1753336242722,0.04,3578.9,3578.0,1.2534]
[1753336242921,0.04,3578.9,3578.1,4.564]
[1753336243136,2.79451583,3578.5,3578.1,4.564]
[1753336243409,2.79457669,3578.4,3578.2,5.0295]
[1753336243639,2.7942327,3578.8,3578.2,5.0295]
[1753336243945,0.04,3578.9,3578.2,5.0295]
[1753336243946,0.04,3578.9,3578.3,1.04814]
[1753336244143,2.83416892,3578.9,3578.3,1.04814]
[1753336244638,2.79454504,3578.4,3578.3,1.04814]
[1753336244844,2.79454504,3578.4,3578.3,0.4665]
[1753336245040,2.79509647,3577.7,3577.5,0.7877]
[1753336245244,3.22378965,3578.4,3577.6,4.559]
[1753336245444,2.79509181,3577.7,3577.6,4.559]
[1753336245957,2.79516994,3577.6,3577.5,0.7877]
[1753336246117,2.79516994,3577.6,3577.5,5.3457]
[1753336246549,2.7954825,3577.2,3577.1,0.7601]
[1753336246727,2.79569344,3577.0,3576.8,6.712]
[1753336246927,2.7956388,3577.0,3576.9,4.557]
[1753336247323,2.79571696,3576.9,3576.8,6.712]
[1753336247523,2.79524807,3577.5,3576.8,6.712]
[1753336247860,2.79571696,3576.9,3576.8,6.712]
[1753336248447,2.79571696,3576.9,3576.8,11.266]
[1753336250026,2.79571696,3576.9,3576.8,11.267]
[1753336250212,2.79571696,3576.9,3576.8,11.263]
[1753336250508,2.79571696,3576.9,3576.8,6.712]
[1753336250714,2.79579512,3576.8,3576.7,0.1392]
[1753336250921,2.79579512,3576.8,3576.1,0.04]
[1753336251127,2.79626419,3576.2,3576.1,0.04]
[1753336251449,2.79626419,3576.2,3576.1,4.588]
[1753336251742,2.79626419,3576.2,3576.1,0.1792]
[1753336251950,2.79626419,3576.2,3576.1,0.04]
[1753336252318,3.22546419,3576.2,3576.1,0.04]
[1753336253336,2.79626419,3576.2,3576.1,0.04]
[1753336254338,2.7966552,3575.7,3575.6,1e-08]
[1753336255319,3.5891552,3575.7,3575.6,1e-08]
[1753336255524,4.05331339,3575.7,3575.6,1e-08]
[1753336256341,4.0183552,3575.7,3575.6,1e-08]
[1753336256721,4.05331339,3575.7,3575.6,1e-08]
[1753336256922,2.79704631,3575.2,3575.1,1e-08]
[1753336258734,3.26120938,3575.2,3575.1,1e-08]
[1753336260455,2.79704631,3575.2,3575.1,1e-08]
[1753336260654,2.83200938,3575.2,3575.1,1e-08]
[1753336260965,7.60584226,3575.2,3575.1,1e-08]
[1753336261168,8.19382855,3575.2,3575.1,1e-08]
[1753336261473,8.95008977,3575.2,3575.1,1e-08]
[1753336261667,13.49408977,3575.2,3575.1,1e-08]
[1753336261864,12.94408977,3575.2,3575.1,1e-08]
[1753336262163,2.7975158,3574.6,3574.5,1e-08]
[1753336262336,2.79804269,3574.0,3573.1,1.817]
[1753336262538,0.55,3574.9,3573.2,5.7899]
[1753336262539,2.79796344,3574.1,3573.2,5.7899]
[1753336262857,2.79749644,3574.7,3573.3,8.40996602]
[1753336263039,0.4292,3574.8,3573.4,5.0315]
[1753336263238,0.4292,3574.8,3573.4,0.4665]
[1753336263457,0.03496796,3574.7,3573.5,0.181289]
[1753336263771,0.03496796,3574.7,3573.6,4.565]
[1753336263772,2.79822033,3573.7,3573.6,4.565]
[1753336263968,2.79822033,3573.7,3573.4,0.4665]
[1753336264130,0.4292,3574.8,3573.2,0.7634]
[1753336264131,0.03497677,3573.8,3573.2,0.7634]
[1753336264340,3.22732224,3573.9,3573.3,4.564]
[1753336264651,2.79845525,3573.4,3573.3,4.564]
[1753336264984,2.79845525,3573.4,3573.1,0.04]
[1753336264985,2.79861188,3573.2,3573.1,0.04]
[1753336265339,3.22781188,3573.2,3573.1,0.04]
[1753336265972,6.99661188,3573.2,3573.1,1e-08]
[1753336266270,7.60273676,3573.2,3573.1,1e-08]
[1753336266505,0.7688,3573.2,3573.1,1e-08]
[1753336266630,3.99661188,3573.2,3573.1,1e-08]
[1753336266942,4.03159452,3573.2,3573.1,1e-08]
[1753336267268,3.56741188,3573.2,3573.1,1e-08]
[1753336267432,0.4292,3573.9,3573.1,1e-08]
[1753336267637,2.79850359,3573.4,3573.1,1e-08]
[1753336267965,0.7678,3573.7,3573.1,1e-08]
[1753336268173,2.79861188,3573.2,3573.1,1e-08]
[1753336268495,2.79797147,3574.1,3573.2,3.34860465]
[1753336268691,0.03497481,3574.0,3573.3,4.584]
[1753336268984,0.7776,3574.7,3573.1,1e-08]
[1753336268985,2.79861188,3573.2,3573.1,1e-08]
[1753336269333,3.26889452,3573.2,3573.1,1e-08]
[1753336269680,7.02059452,3573.2,3573.1,1e-08]
[1753336269834,2.79939533,3572.2,3572.1,0.04]
[1753336270034,3.55109533,3572.2,3572.1,1e-08]
[1753336270253,7.62143457,3572.2,3572.1,1e-08]
[1753336270652,6.86973457,3572.2,3572.1,1e-08]
[1753336270969,7.62143457,3572.2,3572.1,1e-08]
[1753336272583,3.55187921,3571.2,3571.1,1e-08]
[1753336272885,3.58688145,3571.2,3571.1,1e-08]
[1753336273195,3.55187921,3571.2,3571.1,1e-08]
[1753336273644,2.80017921,3571.2,3571.1,1e-08]
[1753336273834,2.94017921,3571.2,3571.1,1e-08]
[1753336274441,3.63010623,3571.2,3571.1,1e-08]
[1753336274668,3.66510847,3571.2,3571.1,1e-08]
[1753336275156,3.63010623,3571.2,3571.1,1e-08]
[1753336275343,0.14,3571.2,3571.1,1e-08]
[1753336275545,0.03499538,3571.9,3571.1,1e-08]
[1753336275896,2.80017921,3571.2,3571.1,1e-08]
[1753336276185,2.79617921,3571.2,3571.1,1e-08]
[1753336276384,3.36980326,3571.2,3571.1,1e-08]
[1753336276566,4.5968055,3571.2,3571.1,1e-08]
[1753336277158,4.12650326,3571.2,3571.1,1e-08]
[1753336277755,4.56180326,3571.2,3571.1,1e-08]
[1753336277988,2.80096353,3570.2,3570.1,1e-08]
[1753336278185,2.80174829,3569.2,3569.1,0.36820001]
[1753336278488,3.14,3570.1,3569.0,0.14]
[1753336278489,2.80182679,3569.1,3569.0,0.14]
[1753336278643,2.80237641,3568.4,3568.3,4.606]
[1753336278848,0.03502479,3568.9,3568.4,2.80230768]
[1753336279043,0.4353,3570.7,3568.3,6.004023]
[1753336279256,2.83572312,3570.6,3568.5,2.80229788]
[1753336279490,3.8286,3570.5,3568.4,1.2768023]
[1753336279654,2.80096353,3570.2,3568.1,0.04]
[1753336279855,0.03501302,3570.1,3568.1,0.04]
[1753336280055,0.03501302,3570.1,3568.3,2.80240787]
[1753336280298,5.9189,3570.4,3568.4,1.18124079]
[1753336280478,7.49393315,3570.3,3568.5,0.4317]
[1753336280682,2.80104198,3570.1,3568.5,0.4317]
[1753336280847,2.801992,3568.9,3568.5,0.4317]
[1753336281060,0.03502577,3568.8,3568.5,0.4317]
[1753336281268,0.03502577,3568.8,3568.1,0.04]
[1753336281269,5.80135585,3569.7,3568.3,0.7828]
[1753336281471,2.80237641,3568.4,3568.3,0.7828]
[1753336281681,2.80237641,3568.4,3568.1,5.1327]
[1753336281682,0.7798,3569.0,3568.1,0.04]
[1753336281982,3.7798,3569.5,3568.1,0.4717]
[1753336282217,3.08123177,3570.0,3568.2,2.80246724]
[1753336282218,0.03501989,3569.4,3568.2,2.80246724]
[1753336282482,0.8043,3569.7,3568.3,0.4317]
[1753336282790,2.80066108,3570.6,3568.3,0.4317]
[1753336282791,5.9126,3570.8,3569.3,2.80165315]
[1753336283014,5.9126,3570.8,3569.4,0.4317]
[1753336283015,0.03500714,3570.7,3569.4,0.4317]
[1753336283144,0.8161,3571.3,3569.7,0.55]
[1753336283344,0.8161,3571.3,3570.4,2.80080061]
[1753336283345,0.03500126,3571.3,3570.4,2.80080061]
[1753336283569,0.85109636,3571.8,3570.2,0.55]
[1753336283788,0.8161,3571.8,3570.8,4.15229288]
[1753336283961,0.04,3571.9,3570.8,7.99922217]
[1753336284160,0.04,3571.9,3570.9,0.55]
[1753336284488,0.04,3571.9,3571.6,2.79985567]
[1753336284687,0.04,3571.9,3571.8,4.15150883]
[1753336284855,0.04,3571.9,3571.8,5.31524528]
[1753336285053,0.04,3571.9,3571.8,10.43194528]
[1753336285308,0.04,3571.9,3571.8,1.2335]
[1753336285602,0.04,3571.9,3571.8,4.48320883]
[1753336286206,0.04,3571.9,3571.8,9.17820883]
[1753336286409,0.04,3571.9,3571.8,1.1335]
[1753336286562,0.04,3571.9,3571.8,0.7018]
[1753336286751,0.04,3571.9,3571.7,4.694]
[1753336287186,0.04,3571.9,3571.4,0.55]
[1753336287489,0.04,3571.9,3571.8,2.79970883]
[1753336287712,0.04,3571.9,3571.8,4.86586627]
[1753336288454,1e-08,3571.9,3571.8,12.55686627]
[1753336288680,1e-08,3571.9,3571.8,13.49596627]
[1753336288981,1e-08,3571.9,3571.8,13.49696627]
[1753336289177,0.04,3572.9,3571.8,12.69706627]
[1753336289503,0.04,3572.9,3572.8,3.56792521]
[1753336289677,0.04,3572.9,3572.8,5.0482]
[1753336289876,0.04,3572.9,3572.8,0.3582]
[1753336290187,0.04,3572.9,3571.9,5.03493431]
[1753336290188,0.04,3572.9,3572.7,4.691]
[1753336290376,0.04,3572.9,3572.8,3.91982521]
[1753336291094,0.04,3573.9,3573.8,2.79814203]
[1753336291308,0.04,3573.9,3573.8,9.26664203]
[1753336291620,0.04,3573.9,3573.8,17.11905325]
[1753336291825,0.04,3574.9,3574.8,4.13645929]
[1753336292109,0.04,3574.9,3574.8,8.83045929]
[1753336292316,0.04,3574.9,3574.8,9.26215929]
[1753336292488,0.04,3574.9,3574.8,4.693]
[1753336292678,0.04,3574.9,3574.8,4.692]
[1753336293113,0.04,3574.9,3574.5,2.79753243]
[1753336293314,0.04,3574.9,3574.6,5.1237]
[1753336293518,3.12107065,3574.9,3574.6,4.689]
[1753336293736,0.04,3574.9,3574.7,0.55]
[1753336293939,0.04,3574.9,3574.8,0.9817]
[1753336294250,0.04,3574.9,3574.8,3.77905929]
[1753336294541,0.04,3574.9,3574.8,4.59965929]
[1753336294936,0.04,3574.9,3574.8,7.59965929]
[1753336295232,0.04,3574.9,3574.8,9.59351609]
[1753336295433,0.04,3575.9,3575.8,4.17697698]
[1753336295639,0.04,3575.9,3575.8,6.0704]
[1753336295835,0.04,3575.9,3575.8,6.5021]
[1753336296129,0.04,3575.9,3575.8,5.5184]
[1753336296309,0.04,3575.9,3575.5,6.723]
[1753336296512,2.8365276,3575.9,3575.5,6.723]
[1753336296742,2.79671758,3575.7,3575.6,4.688]
[1753336296905,2.79673341,3575.6,3575.5,6.723]
[1753336297104,2.7977506,3574.3,3572.9,4.85241122]
[1753336297412,0.7692,3575.1,3573.7,3.7624]
[1753336297633,0.03496503,3575.0,3573.7,0.7624]
[1753336297804,2.79822033,3573.7,3573.6,6.721]
[1753336298239,2.79822033,3573.7,3573.6,11.416]
[1753336298438,2.79822033,3573.7,3573.6,11.415]
[1753336298805,2.79822033,3573.7,3573.6,11.413]
[1753336299008,0.03497677,3573.8,3573.1,0.04]
[1753336299309,2.79861188,3573.2,3573.1,0.04]
[1753336299636,2.79861188,3573.2,3573.1,4.733]
[1753336300010,2.79861188,3573.2,3573.1,0.04]
[1753336300215,2.79861188,3573.2,3573.1,4.731]
[1753336300618,2.79861188,3573.2,3573.1,0.04]
[1753336300827,2.79861188,3573.2,3573.1,4.73]
[1753336301247,3.35831894,3573.2,3573.1,0.04]
[1753336301846,3.35831894,3573.2,3573.1,4.725]
[1753336302043,3.79611894,3573.2,3573.1,0.04]
[1753336302354,2.79900355,3572.7,3572.6,4.684]
[1753336303765,2.79806373,3573.9,3572.6,4.684]
[1753336303964,2.79886039,3572.9,3572.6,5.1484]
[1753336304171,2.79886039,3572.9,3572.6,4.684]
[1753336304369,0.4378,3573.8,3572.7,0.9328]
[1753336304568,2.79794226,3574.1,3572.7,0.9328]
[1753336304743,2.79879005,3573.0,3572.7,0.9328]
[1753336304950,2.79794226,3574.1,3572.7,0.9328]
[1753336305192,2.79870372,3573.1,3572.7,0.9328]
[1753336305471,3.23559724,3574.3,3572.9,0.55]
[1753336305632,0.8281,3574.5,3573.1,0.55]
[1753336305966,1.2623,3575.2,3573.8,0.55]
[1753336306165,2.83732997,3574.9,3574.0,0.55]
[1753336306333,0.04,3574.9,3574.0,0.55]
[1753336306533,2.79766271,3574.5,3574.0,0.55]
[1753336306740,0.04,3574.9,3574.2,0.55]
[1753336306936,0.04,3574.9,3573.4,7.9587]
[1753336307146,2.79837694,3573.5,3573.4,7.4943]
[1753336307342,2.79837694,3573.5,3573.4,12.1703]
[1753336307599,2.79920528,3572.5,3572.1,6.762]
[1753336307876,2.79931696,3572.3,3572.2,5.226]
[1753336308077,2.79931696,3572.3,3572.2,4.676]
[1753336308975,2.79939533,3572.2,3572.1,6.762]
[1753336309178,2.79861188,3573.2,3572.1,11.439]
[1753336309535,2.79939533,3572.2,3572.1,11.439]
[1753336309825,2.79934111,3572.3,3572.1,11.439]
[1753336310483,2.79909172,3572.6,3572.1,11.9034]
[1753336310692,2.79939533,3572.2,3572.1,11.9034]
[1753336310991,2.79933377,3572.3,3572.1,11.9034]
[1753336311510,2.79939533,3572.2,3572.1,11.9034]
[1753336311903,2.79939533,3572.2,3572.1,11.439]
[1753336312110,2.79934421,3572.3,3572.1,11.439]
[1753336312706,2.79939533,3572.2,3572.1,11.439]
[1753336315718,2.79932678,3572.3,3572.1,11.439]
[1753336315920,2.79939533,3572.2,3572.1,11.439]
[1753336316093,2.79932467,3572.3,3572.1,6.762]
[1753336316422,2.79939533,3572.2,3572.1,6.762]
[1753336316625,2.79939533,3572.2,3572.1,11.415]
[1753336317210,2.79939533,3572.2,3571.2,0.55]
[1753336317211,2.80096353,3570.2,3569.7,0.7937]
[1753336317414,0.825,3570.8,3570.1,4.753]
[1753336317585,0.825,3571.4,3570.2,0.4644]
[1753336317791,3.62504625,3571.4,3570.3,0.55]
[1753336318129,0.825,3571.4,3570.3,0.55]
[1753336318287,0.4378,3571.8,3570.5,2.80065442]
[1753336318288,2.80011274,3571.3,3570.5,2.80065442]
[1753336318490,2.8002486,3571.2,3570.7,0.55]
[1753336318705,0.825,3572.0,3570.9,0.55]
[1753336319027,2.79990735,3571.6,3570.9,0.55]
[1753336319225,0.825,3572.0,3570.9,0.55]
[1753336319430,2.79963044,3571.9,3570.8,5.1754]
[1753336319625,0.36246304,3571.8,3570.8,4.711]
[1753336319924,2.80055983,3570.8,3570.1,0.04]
[1753336320125,2.79989643,3571.6,3570.2,4.709]
[1753336320329,2.79977293,3571.8,3570.5,0.8039]
[1753336320529,2.79929106,3572.4,3571.4,2.79997555]
[1753336320731,2.7998656,3571.6,3571.5,4.708]
[1753336321195,2.80032287,3571.1,3570.5,0.8039]
[1753336321392,0.03499832,3571.6,3570.6,5.512824]
[1753336321693,0.4378,3572.0,3570.6,5.512824]
[1753336321694,0.4378,3572.0,3570.6,5.977224]
[1753336321889,2.79970883,3571.8,3570.7,0.55]
[1753336322101,2.79963044,3571.9,3570.7,1.5366724]
[1753336322293,0.4727944,3572.0,3570.7,1.5366724]
[1753336322294,3.5658656,3571.6,3570.8,4.707]
[1753336322498,0.766,3571.9,3569.0,3.05032598]
[1753336322731,2.8003945,3571.0,3570.1,4.757]
[1753336322932,2.80038971,3571.0,3570.2,2.80096353]
[1753336323096,2.80080663,3570.4,3570.3,4.716]
[1753336323300,0.03500518,3570.9,3570.1,0.041]
[1753336323301,0.7966,3570.8,3570.1,0.041]
[1753336323656,2.80088507,3570.3,3570.2,4.716]
[1753336324196,2.80096353,3570.2,3570.1,0.041]
[1753336324499,0.4378,3570.8,3570.1,4.757]
[1753336324716,2.80082288,3570.4,3570.1,4.757]
[1753336324916,0.7989,3571.2,3570.1,4.757]
[1753336325129,2.80075263,3570.5,3570.1,5.2327]
[1753336325429,2.80033604,3571.0,3570.2,3.26536328]
[1753336325595,2.80042475,3570.9,3570.2,0.4644]
[1753336325796,2.80042475,3570.9,3570.3,2.80088318]
[1753336325998,0.7801,3571.7,3570.6,2.80064975]
[1753336326200,0.7801,3571.7,3570.7,4.71]
[1753336326407,2.79987331,3571.6,3570.9,2.80039412]
[1753336326610,0.7801,3571.7,3570.7,4.71]
[1753336326896,2.7998656,3571.6,3570.7,4.71]
[1753336327230,0.4378,3571.9,3570.8,0.471]
[1753336327231,0.0349993,3571.5,3570.8,0.471]
[1753336327451,2.80049288,3570.8,3570.7,4.71]
[1753336327653,0.4378,3571.9,3570.7,4.71]
[1753336327946,0.4378,3571.9,3570.8,0.55]
[1753336328121,2.79983927,3571.7,3571.0,2.80030914]
[1753336328327,0.8114,3572.1,3571.0,2.80030914]
[1753336328328,2.79992525,3571.6,3571.0,0.45061372]
[1753336328524,0.8114,3572.1,3571.0,0.45061372]
[1753336328753,2.79955207,3572.0,3571.0,0.45061372]
[1753336328947,2.80008626,3571.4,3570.8,0.55]
[1753336329254,0.4378,3572.0,3570.8,0.55]
[1753336329429,2.79995186,3571.5,3570.8,3.35042292]
[1753336329828,0.4378,3572.0,3570.9,2.80039786]
[1753336330029,2.79999347,3571.5,3571.0,0.85247979]
[1753336330237,0.4727944,3572.0,3571.0,0.85247979]
[1753336330436,0.4727944,3572.0,3571.3,2.80004053]
[1753336330437,2.79961055,3572.0,3571.3,2.80004053]
[1753336330753,0.4772895,3572.5,3571.1,3.24265762]